fUSD/lending_fUSD_20250107
["ID","MTS","AMOUNT","RATE_DAILY","PERIOD"]
[347955867,1736243449204,-500.0,9.798e-05,2]
[347955868,1736243449213,-500.0,9.798e-05,2]
[347955869,1736243449222,-500.0,9.798e-05,2]
[347955870,1736243449234,-500.0,9.798e-05,2]
[347955871,1736243449244,-500.0,9.798e-05,2]
[347955872,1736243449253,-500.0,9.798e-05,2]
[347955873,1736243449263,-500.0,9.798e-05,2]
[347955874,1736243449272,-500.0,9.798e-05,2]
[347955875,1736243449282,-500.0,9.798e-05,2]
[347955876,1736243449292,-500.0,9.798e-05,2]
[347955877,1736243449301,-500.0,9.798e-05,2]
[347955878,1736243449311,-500.0,9.798e-05,2]
[347955879,1736243449320,-500.0,9.798e-05,2]
[347955880,1736243449330,-500.0,9.798e-05,2]
[347955881,1736243449339,-500.0,9.798e-05,2]
[347955882,1736243449348,-500.0,9.798e-05,2]
[347955883,1736243449358,-500.0,9.798e-05,2]
[347955884,1736243449367,-500.0,9.798e-05,2]
[347955885,1736243449379,-500.0,9.798e-05,2]
[347955886,1736243449388,-500.0,9.798e-05,2]
[347955887,1736243449398,-500.0,9.798e-05,2]
[347955888,1736243449408,-500.0,9.798e-05,2]
[347955889,1736243449417,-500.0,9.798e-05,2]
[347955890,1736243449428,-500.0,9.798e-05,2]
[347955891,1736243449437,-500.0,9.798e-05,2]
[347955892,1736243449446,-500.0,9.798e-05,2]
[347955893,1736243449455,-414.24140324,9.798e-05,2]
[347955894,1736243449464,-500.0,9.798e-05,2]
[347955895,1736243449474,-500.0,9.798e-05,2]
[347955896,1736243449483,-500.0,9.798e-05,2]
[347955897,1736243449492,-500.0,9.798e-05,2]
[347955898,1736243449501,-500.0,9.798e-05,2]
[347955899,1736243449511,-500.0,9.798e-05,2]
[347955900,1736243449520,-500.0,9.798e-05,2]
[347955901,1736243449529,-500.0,9.798e-05,2]
[347955902,1736243449539,-500.0,9.798e-05,2]
[347955903,1736243449548,-500.0,9.798e-05,2]
[347955904,1736243449557,-500.0,9.798e-05,2]
[347955905,1736243449566,-500.0,9.798e-05,2]
[347955906,1736243449575,-500.0,9.798e-05,2]
[347955907,1736243449584,-566.16,9.798e-05,2]
[347955908,1736243449593,-549.51549002,9.798e-05,2]
[347955909,1736243449602,-500.0,9.798e-05,2]
[347955910,1736243449611,-3307.7,9.798e-05,2]
[347955911,1736243449621,-500.0,9.798e-05,2]
[347955912,1736243449631,-500.0,9.798e-05,2]
[347955913,1736243449640,-513.92334594,9.798e-05,2]
[347955914,1736243449650,-500.0,9.798e-05,2]
[347955915,1736243449659,-500.0,9.798e-05,2]
[347955916,1736243449668,-500.0,9.798e-05,2]
[347955917,1736243449677,-500.0,9.798e-05,2]
[347955918,1736243449687,-500.0,9.798e-05,2]
[347955919,1736243449696,-500.0,9.798e-05,2]
[347955920,1736243449705,-500.0,9.798e-05,2]
[347955921,1736243449714,-1491.34,9.798e-05,2]
[347955922,1736243449723,-500.0,9.798e-05,2]
[347955923,1736243449733,-500.0,9.798e-05,2]
[347955924,1736243449742,-500.0,9.798e-05,2]
[347955925,1736243449751,-500.0,9.798e-05,2]
[347955926,1736243449760,-500.0,9.798e-05,2]
[347955927,1736243449769,-500.0,9.798e-05,2]
[347955928,1736243449779,-500.0,9.798e-05,2]
[347955929,1736243449788,-500.0,9.798e-05,2]
[347955930,1736243449796,-500.0,9.798e-05,2]
[347955931,1736243449806,-500.0,9.798e-05,2]
[347955932,1736243449815,-500.0,9.798e-05,2]
[347955933,1736243449824,-500.0,9.798e-05,2]
[347955934,1736243449834,-500.0,9.798e-05,2]
[347955935,1736243449843,-500.0,9.798e-05,2]
[347955936,1736243449852,-554.5,9.798e-05,2]
[347955937,1736243449862,-500.0,9.798e-05,2]
[347955938,1736243449872,-500.0,9.798e-05,2]
[347955939,1736243449881,-500.0,9.798e-05,2]
[347955940,1736243449892,-500.0,9.798e-05,2]
[347955941,1736243449901,-500.0,9.798e-05,2]
[347955942,1736243449910,-500.0,9.798e-05,2]
[347955943,1736243449919,-500.0,9.798e-05,2]
[347955944,1736243449928,-500.0,9.798e-05,2]
[347955945,1736243449937,-490.75182993,9.798e-05,2]
[347955946,1736243449946,-500.0,9.798e-05,2]
[347955947,1736243449955,-596.96,9.798e-05,2]
[347955948,1736243449965,-500.0,9.798e-05,2]
[347955949,1736243449974,-500.0,9.798e-05,2]
[347955950,1736243449983,-500.0,9.798e-05,2]
[347955951,1736243449993,-500.0,9.798e-05,2]
[347955952,1736243450002,-500.0,9.798e-05,2]
[347955953,1736243450011,-500.0,9.798e-05,2]
[347955954,1736243450020,-500.0,9.798e-05,2]
[347955955,1736243450029,-500.0,9.798e-05,2]
[347955956,1736243450039,-500.0,9.798e-05,2]
[347955957,1736243450048,-200.0091,9.799e-05,2]
[347955958,1736243450058,-150.0,9.8e-05,2]
[347955959,1736243450067,-150.0,9.804e-05,2]
[347955960,1736243450230,-150.0,9.832e-05,2]
[347955961,1736243450240,-679.66,9.863e-05,2]
[347955962,1736243450250,-558.8,9.863e-05,2]
[347955963,1736243450260,-500.0,9.864e-05,2]
[347955964,1736243450269,-500.18752387,9.873e-05,2]
[347955965,1736243450279,-150.0,9.89e-05,2]
[347955966,1736243450288,-150.0,9.89e-05,2]
[347955967,1736243450297,-150.0,9.89e-05,2]
[347955968,1736243450306,-2441.3500289,9.893e-05,2]
[347955969,1736243450315,-5265.3120786,9.893e-05,2]
[347955970,1736243450324,-1740.6425613,9.893e-05,2]
[347955971,1736243450334,-194.366936,9.894e-05,2]
[347955972,1736243450343,-916.05,9.894e-05,2]
[347955973,1736243450352,-500.0,9.894e-05,2]
[347955974,1736243450361,-500.0,9.894e-05,2]
[347955975,1736243450372,-500.0,9.894e-05,2]
[347955976,1736243450381,-500.0,9.894e-05,2]
[347955977,1736243450391,-500.0,9.894e-05,2]
[347955978,1736243450401,-1860.92,9.894e-05,2]
[347955979,1736243450411,-576.47,9.894e-05,2]
[347955980,1736243450420,-500.0,9.894e-05,2]
[347955981,1736243450430,-500.0,9.894e-05,2]
[347955982,1736243450439,-500.0,9.894e-05,2]
[347955983,1736243450449,-500.0,9.894e-05,2]
[347955984,1736243450458,-500.0,9.894e-05,2]
[347955985,1736243450468,-500.0,9.894e-05,2]
[347955986,1736243450478,-1052.23,9.895e-05,2]
[347955987,1736243450487,-500.0,9.895e-05,2]
[347955988,1736243450496,-500.0,9.895e-05,2]
[347955989,1736243450505,-500.0,9.895e-05,2]
[347955990,1736243450515,-500.0,9.895e-05,2]
[347955991,1736243450524,-500.0,9.895e-05,2]
[347955992,1736243450533,-500.0,9.895e-05,2]
[347955993,1736243450543,-2406.76,9.895e-05,2]
[347955994,1736243450552,-500.0,9.895e-05,2]
[347955995,1736243450562,-500.0,9.895e-05,2]
[347955996,1736243450571,-500.0,9.895e-05,2]
[347955997,1736243450580,-500.0,9.895e-05,2]
[347955998,1736243450590,-500.0,9.895e-05,2]
[347955999,1736243450599,-500.0,9.895e-05,2]
[347956000,1736243450608,-500.0,9.895e-05,2]
[347956001,1736243450618,-500.0,9.895e-05,2]
[347956002,1736243450629,-500.0,9.895e-05,2]
[347956003,1736243450638,-500.0,9.896e-05,2]
[347956004,1736243450648,-500.0,9.896e-05,2]
[347956005,1736243450657,-655.82,9.896e-05,2]
[347956006,1736243450667,-500.0,9.896e-05,2]
[347956007,1736243450676,-500.0,9.896e-05,2]
[347956008,1736243450685,-500.0,9.896e-05,2]
[347956009,1736243450694,-500.0,9.896e-05,2]
[347956010,1736243450704,-500.0,9.896e-05,2]
[347956011,1736243450714,-500.0,9.896e-05,2]
[347956012,1736243450723,-500.0,9.896e-05,2]
[347956013,1736243450732,-500.0,9.896e-05,2]
[347956014,1736243450742,-500.0,9.896e-05,2]
[347956015,1736243450752,-1000.0,9.896e-05,2]
[347956016,1736243450761,-500.0,9.896e-05,2]
[347956017,1736243450770,-500.0,9.898e-05,2]
[347956018,1736243450779,-500.0,9.898e-05,2]
[347956019,1736243450789,-500.0,9.898e-05,2]
[347956020,1736243450798,-500.0,9.898e-05,2]
[347956021,1736243450807,-535.14,9.898e-05,2]
[347956022,1736243450816,-500.0,9.898e-05,2]
[347956023,1736243450827,-500.0,9.898e-05,2]
[347956024,1736243450837,-1431.54,9.898e-05,2]
[347956025,1736243450846,-500.0,9.898e-05,2]
[347956026,1736243450855,-1265.35,9.898e-05,2]
[347956027,1736243450864,-1598.78,9.898e-05,2]
[347956028,1736243450874,-500.0,9.898e-05,2]
[347956029,1736243450883,-500.0,9.898e-05,2]
[347956030,1736243450892,-500.0,9.898e-05,2]
[347956031,1736243450903,-500.0,9.898e-05,2]
[347956032,1736243450912,-500.0,9.898e-05,2]
[347956033,1736243450921,-500.0,9.898e-05,2]
[347956034,1736243450930,-1372.78,9.898e-05,2]
[347956035,1736243450939,-5097.34,9.898e-05,2]
[347956036,1736243450948,-657.17,9.898e-05,2]
[347956037,1736243450957,-1168.33,9.898e-05,2]
[347956038,1736243450967,-131114.97797022,9.899e-05,2]
[347956039,1736243450976,-500.0,9.899e-05,2]
[347956040,1736243450985,-500.0,9.899e-05,2]
[347956041,1736243450994,-500.0,9.899e-05,2]
[347956042,1736243451003,-568.14,9.899e-05,2]
[347956043,1736243451013,-675.0,9.9e-05,2]
[347956044,1736243451022,-170065.9530593,9.9e-05,2]
[347956045,1736243451641,-500.0,9.698e-05,2]
[347956046,1736243451651,-198.384581,9.698e-05,2]
[347956047,1736243451663,-301.615419,9.698e-05,2]
[347956048,1736243451673,-500.0,9.699e-05,2]
[347956049,1736243451683,-933.10582782,9.9e-05,2]
[347956050,1736243451768,-3371.0,9.9e-05,2]
[347956051,1736243451800,-292.91466569,9.9e-05,2]
[347956052,1736243451821,-4174.96880655,9.9e-05,2]
[347956053,1736243451836,-101679.29380615,9.9e-05,2]
[347956054,1736243452084,-500.0,9.698e-05,2]
[347956055,1736243452093,-500.0,9.698e-05,2]
[347956056,1736243452103,-1020.34821804,9.9e-05,2]
[347956057,1736243452114,-4702.6365,9.9e-05,2]
[347956058,1736243452136,-232972.34287716,9.9e-05,2]
[347956059,1736243452147,-401.63840562,9.9e-05,2]
[347956060,1736243452168,-186563.6371982,9.9e-05,2]
[347956061,1736243452179,-10936.1927267,9.9e-05,2]
[347956062,1736243452202,-1209.449995,9.9e-05,2]
[347956063,1736243452213,-4135.07613757,9.9e-05,2]
[347956064,1736243452587,-316.31123238,9.9e-05,2]
[347956065,1736243651934,157.0,0.0002,120]
[347956066,1736243792044,155.55,7.104e-05,2]
[347956067,1736243910617,102599.0,0.0002,120]
[347956069,1736244221873,650.0,0.0002,120]
[347956095,1736244632223,-300.0,8.218e-05,2]
[347956096,1736244632232,-200.04139326,8.219e-05,2]
[347956097,1736244632244,-356.15532581,8.219e-05,2]
[347956098,1736244632255,-1661.47568001,8.219e-05,2]
[347956099,1736244632310,-1543.99431068,8.219e-05,2]
[347956100,1736244632319,-500.0,8.219e-05,2]
[347956101,1736244632328,-505.47,8.219e-05,2]
[347956102,1736244632338,-500.0,8.219e-05,2]
[347956103,1736244632347,-35.4538205,8.219e-05,2]
[347956104,1736244632387,-538.1961795,8.219e-05,2]
[347956105,1736244632396,-500.0,8.219e-05,2]
[347956106,1736244632406,-500.0,8.219e-05,2]
[347956107,1736244632415,-500.0,8.219e-05,2]
[347956108,1736244632424,-500.0,8.219e-05,2]
[347956109,1736244632436,-500.0,8.219e-05,2]
[347956110,1736244632446,-500.0,8.219e-05,2]
[347956111,1736244632455,-500.0,8.219e-05,2]
[347956112,1736244632464,-500.0,8.219e-05,2]
[347956113,1736244632474,-500.0,8.219e-05,2]
[347956114,1736244632483,-500.0,8.219e-05,2]
[347956115,1736244632492,-500.0,8.219e-05,2]
[347956116,1736244632501,-500.0,8.219e-05,2]
[347956117,1736244632512,-500.0,8.219e-05,2]
[347956118,1736244632522,-500.0,8.219e-05,2]
[347956119,1736244632531,-500.0,8.219e-05,2]
[347956120,1736244632541,-500.0,8.219e-05,2]
[347956121,1736244632550,-500.0,8.219e-05,2]
[347956122,1736244632559,-583.58,8.219e-05,2]
[347956123,1736244632568,-406.1238205,8.219e-05,2]
[347956124,1736244632579,-93.8761795,8.219e-05,2]
[347956125,1736244632588,-500.0,8.219e-05,2]
[347956126,1736244632598,-500.0,8.219e-05,2]
[347956127,1736244632607,-500.0,8.219e-05,2]
[347956128,1736244632616,-500.0,8.219e-05,2]
[347956129,1736244632626,-500.0,8.219e-05,2]
[347956130,1736244632635,-500.0,8.219e-05,2]
[347956131,1736244632644,-500.0,8.219e-05,2]
[347956132,1736244632653,-500.0,8.219e-05,2]
[347956133,1736244632663,-500.0,8.219e-05,2]
[347956134,1736244632672,-500.0,8.219e-05,2]
[347956135,1736244632681,-500.0,8.219e-05,2]
[347956136,1736244632691,-466.0687439,8.219e-05,2]
[347956137,1736244632710,-33.9312561,8.219e-05,2]
[347956139,1736244632720,-428.63,8.219e-05,2]
[347956141,1736244632729,-500.0,8.219e-05,2]
[347956142,1736244632738,-500.0,8.219e-05,2]
[347956143,1736244632748,-500.0,8.219e-05,2]
[347956144,1736244632758,-500.0,8.219e-05,2]
[347956145,1736244632767,-500.0,8.219e-05,2]
[347956146,1736244632777,-518.67,8.219e-05,2]
[347956147,1736244632787,-1418.27,8.219e-05,2]
[347956148,1736244632796,-680.18,8.219e-05,2]
[347956149,1736244632806,-500.0,8.493e-05,2]
[347956150,1736244632815,-500.0,8.493e-05,2]
[347956151,1736244632824,-500.0,8.493e-05,2]
[347956152,1736244632834,-500.0,8.493e-05,2]
[347956153,1736244632843,-550.16,8.493e-05,2]
[347956154,1736244632852,-633.49,8.493e-05,2]
[347956155,1736244632861,-500.0,8.493e-05,2]
[347956156,1736244632870,-500.0,8.493e-05,2]
[347956157,1736244632880,-500.0,8.493e-05,2]
[347956158,1736244632889,-173.64,8.493e-05,2]
[347956159,1736244632898,-500.0,8.493e-05,2]
[347956160,1736244632908,-500.0,8.493e-05,2]
[347956161,1736244632917,-320.29,8.493e-05,2]
[347956162,1736244632926,-201.42443306,8.493e-05,2]
[347956163,1736244632935,-28.91431084,8.493e-05,2]
[347956164,1736244632949,-471.08568916,8.493e-05,2]
[347956165,1736244632959,-500.0,8.493e-05,2]
[347956166,1736244632968,-500.0,8.493e-05,2]
[347956167,1736244632977,-583.58,8.493e-05,2]
[347956168,1736244632986,-500.0,8.493e-05,2]
[347956169,1736244632996,-500.0,8.493e-05,2]
[347956170,1736244633005,-500.0,8.493e-05,2]
[347956171,1736244633016,-500.0,8.493e-05,2]
[347956172,1736244633027,-500.0,8.493e-05,2]
[347956173,1736244633037,-500.0,8.493e-05,2]
[347956174,1736244633047,-500.0,8.493e-05,2]
[347956175,1736244633057,-500.0,8.493e-05,2]
[347956176,1736244633066,-500.0,8.493e-05,2]
[347956177,1736244633076,-500.0,8.493e-05,2]
[347956178,1736244633085,-500.0,8.493e-05,2]
[347956179,1736244633095,-500.0,8.493e-05,2]
[347956180,1736244633105,-500.0,8.493e-05,2]
[347956181,1736244633115,-500.0,8.493e-05,2]
[347956182,1736244633125,-500.0,8.493e-05,2]
[347956183,1736244633134,-518.67,8.493e-05,2]
[347956184,1736244633143,-1418.27,8.493e-05,2]
[347956185,1736244633152,-250.0,8.691e-05,2]
[347956186,1736244633162,-153.04,8.707e-05,2]
[347956187,1736244633171,-500.0,8.767e-05,2]
[347956188,1736244633180,-500.0,8.767e-05,2]
[347956189,1736244633190,-500.0,8.767e-05,2]
[347956190,1736244633199,-354.09,8.767e-05,2]
[347956191,1736244633208,-500.0,8.767e-05,2]
[347956192,1736244633218,-175.21,8.767e-05,2]
[347956193,1736244633227,-500.0,8.767e-05,2]
[347956194,1736244633236,-453.27,8.767e-05,2]
[347956195,1736244633245,-500.0,8.767e-05,2]
[347956196,1736244633254,-500.0,8.767e-05,2]
[347956197,1736244633264,-500.0,8.767e-05,2]
[347956198,1736244633274,-617.65,8.767e-05,2]
[347956199,1736244633283,-583.58,8.767e-05,2]
[347956200,1736244633294,-500.0,8.767e-05,2]
[347956201,1736244633303,-500.0,8.767e-05,2]
[347956202,1736244633312,-500.0,8.767e-05,2]
[347956203,1736244633321,-500.0,8.767e-05,2]
[347956204,1736244633331,-500.0,8.767e-05,2]
[347956205,1736244633340,-500.0,8.767e-05,2]
[347956206,1736244633350,-500.0,8.767e-05,2]
[347956207,1736244633569,-300.93,8.767e-05,2]
[347956208,1736244633578,-500.0,8.767e-05,2]
[347956209,1736244633587,-500.0,8.767e-05,2]
[347956210,1736244633597,-500.0,8.767e-05,2]
[347956211,1736244633608,-500.0,8.767e-05,2]
[347956212,1736244633618,-610.33,8.767e-05,2]
[347956213,1736244633627,-518.67,8.767e-05,2]
[347956214,1736244633637,-1418.27,8.767e-05,2]
[347956215,1736244633646,-7620.52,8.81e-05,2]
[347956216,1736244633655,-322.59,8.855e-05,2]
[347956217,1736244633664,-1000.0,8.867e-05,2]
[347956218,1736244633673,-150.0,8.901e-05,2]
[347956219,1736244633682,-167.12,8.971e-05,2]
[347956220,1736244633692,-285.64,9.041e-05,2]
[347956221,1736244633702,-500.0,9.041e-05,2]
[347956222,1736244633712,-500.0,9.041e-05,2]
[347956223,1736244633721,-527.49680313,9.041e-05,2]
[347956224,1736244633731,-193.0,9.041e-05,2]
[347956225,1736244633740,-500.0,9.041e-05,2]
[347956226,1736244633750,-583.58,9.041e-05,2]
[347956227,1736244633759,-380.82,9.041e-05,2]
[347956228,1736244633768,-500.0,9.041e-05,2]
[347956229,1736244633778,-500.0,9.041e-05,2]
[347956230,1736244633788,-500.0,9.041e-05,2]
[347956231,1736244633798,-500.0,9.041e-05,2]
[347956232,1736244633808,-500.0,9.041e-05,2]
[347956233,1736244633818,-500.0,9.041e-05,2]
[347956234,1736244633827,-518.67,9.041e-05,2]
[347956235,1736244633836,-334.71463771,9.041e-05,2]
[347956246,1736244638220,-1083.55536229,9.041e-05,2]
[347956247,1736244638229,-380.74747772,9.315e-05,2]
[347956248,1736244638240,-119.25252228,9.315e-05,2]
[347956249,1736244638249,-500.0,9.315e-05,2]
[347956250,1736244638259,-167.41,9.315e-05,2]
[347956251,1736244638268,-583.58,9.315e-05,2]
[347956252,1736244638277,-646.57,9.315e-05,2]
[347956253,1736244638287,-258.53,9.315e-05,2]
[347956254,1736244638298,-500.0,9.315e-05,2]
[347956255,1736244638308,-206.26,9.315e-05,2]
[347956256,1736244638317,-350.88,9.315e-05,2]
[347956257,1736244638327,-518.67,9.315e-05,2]
[347956258,1736244638337,-1418.27,9.315e-05,2]
[347956259,1736244638346,-503.836,9.41e-05,2]
[347956260,1736244638356,-500.0,9.589e-05,2]
[347956261,1736244638366,-500.0,9.589e-05,2]
[347956262,1736244638375,-583.58,9.589e-05,2]
[347956263,1736244638384,-246.56,9.589e-05,2]
[347956264,1736244638394,-518.67,9.589e-05,2]
[347956265,1736244638404,-1418.27,9.589e-05,2]
[347956266,1736244638413,-609.54240772,9.597e-05,2]
[347956267,1736244638425,-1890.45759228,9.597e-05,2]
[347956268,1736244638438,-1115.0281,9.598e-05,2]
[347956269,1736244638447,-500.0,9.696e-05,2]
[347956270,1736244638457,-217.32413512,9.696e-05,2]
[347956271,1736244638469,-282.67586488,9.696e-05,2]
[347956272,1736244638479,-500.0,9.696e-05,2]
[347956273,1736244638489,-321.75167179,9.696e-05,2]
[347956274,1736244638556,-536.84832821,9.696e-05,2]
[347956275,1736244638566,-500.0,9.696e-05,2]
[347956276,1736244638576,-1756.45,9.696e-05,2]
[347956277,1736244638586,-500.0,9.696e-05,2]
[347956278,1736244638595,-701.37,9.696e-05,2]
[347956279,1736244638604,-85.1206498,9.696e-05,2]
[347956280,1736244638640,-830.7264,9.696e-05,2]
[347956281,1736244638658,-470.6729502,9.696e-05,2]
[347956282,1736244638667,-5270.82,9.696e-05,2]
[347956283,1736244638677,-500.0,9.696e-05,2]
[347956284,1736244638687,-500.0,9.696e-05,2]
[347956285,1736244638697,-500.0,9.696e-05,2]
[347956286,1736244638707,-500.0,9.696e-05,2]
[347956287,1736244638717,-467.60584226,9.696e-05,2]
[347956299,1736244640213,-32.39415774,9.696e-05,2]
[347956301,1736244640223,-332.57334836,9.696e-05,2]
[347956330,1736244642602,-31578.9565,9.597e-05,2]
[347956331,1736244642611,-209.38665164,9.696e-05,2]
[347956332,1736244642621,-1505.72,9.696e-05,2]
[347956333,1736244642632,-502.13,9.696e-05,2]
[347956334,1736244642643,-538.62,9.696e-05,2]
[347956335,1736244642653,-500.0,9.696e-05,2]
[347956336,1736244642665,-2144.63,9.696e-05,2]
[347956337,1736244642674,-2441.53,9.696e-05,2]
[347956339,1736244642684,-3334.79,9.696e-05,2]
[347956341,1736244642695,-828.36,9.696e-05,2]
[347956343,1736244642706,-500.0,9.696e-05,2]
[347956345,1736244642716,-2126.77,9.696e-05,2]
[347956347,1736244642727,-500.0,9.696e-05,2]
[347956349,1736244642736,-2310.48,9.696e-05,2]
[347956351,1736244642746,-500.0,9.696e-05,2]
[347956353,1736244642755,-500.0,9.696e-05,2]
[347956355,1736244642764,-2505.96,9.696e-05,2]
[347956357,1736244642774,-500.0,9.696e-05,2]
[347956359,1736244642784,-500.0,9.696e-05,2]
[347956361,1736244642793,-246.859252,9.696e-05,2]
[347956363,1736244642807,-500.0,9.696e-05,2]
[347956365,1736244642817,-155.415242,9.696e-05,2]
[347956366,1736244642826,-500.0,9.696e-05,2]
[347956368,1736244642835,-166.136689,9.696e-05,2]
[347956370,1736244642844,-500.0,9.696e-05,2]
[347956372,1736244642854,-500.0,9.696e-05,2]
[347956374,1736244642863,-500.0,9.696e-05,2]
[347956376,1736244642873,-521.86,9.696e-05,2]
[347956378,1736244642882,-1312.84,9.696e-05,2]
[347956380,1736244642891,-500.0,9.696e-05,2]
[347956383,1736244642901,-477.31115988,9.697e-05,2]
[347956387,1736244642910,-500.0,9.697e-05,2]
[347956391,1736244642919,-500.0,9.697e-05,2]
[347956393,1736244642928,-500.0,9.697e-05,2]
[347956395,1736244642938,-500.0,9.697e-05,2]
[347956397,1736244642947,-500.0,9.697e-05,2]
[347956399,1736244642956,-431.59007268,9.697e-05,2]
[347956401,1736244642965,-500.0,9.697e-05,2]
[347956404,1736244642975,-500.0,9.697e-05,2]
[347956407,1736244642985,-500.0,9.697e-05,2]
[347956410,1736244642994,-500.0,9.697e-05,2]
[347956413,1736244643003,-500.0,9.697e-05,2]
[347956415,1736244643012,-500.0,9.697e-05,2]
[347956417,1736244643021,-500.0,9.697e-05,2]
[347956419,1736244643031,-500.0,9.697e-05,2]
[347956421,1736244643040,-472.94677048,9.697e-05,2]
[347956422,1736244643053,-521.8234233,9.697e-05,2]
[347956423,1736244643063,-500.0,9.697e-05,2]
[347956424,1736244643072,-500.0,9.697e-05,2]
[347956425,1736244643082,-500.0,9.697e-05,2]
[347956426,1736244643092,-500.0,9.697e-05,2]
[347956427,1736244643102,-500.0,9.697e-05,2]
[347956428,1736244643111,-500.0,9.697e-05,2]
[347956429,1736244643121,-500.0,9.697e-05,2]
[347956430,1736244643130,-500.0,9.697e-05,2]
[347956431,1736244643140,-500.0,9.697e-05,2]
[347956432,1736244643149,-500.0,9.697e-05,2]
[347956434,1736244643159,-500.0,9.697e-05,2]
[347956436,1736244643168,-500.0,9.697e-05,2]
[347956438,1736244643177,-500.0,9.697e-05,2]
[347956440,1736244643186,-500.0,9.697e-05,2]
[347956442,1736244643196,-500.0,9.697e-05,2]
[347956444,1736244643205,-500.0,9.697e-05,2]
[347956446,1736244643214,-500.0,9.697e-05,2]
[347956448,1736244643223,-500.0,9.697e-05,2]
[347956450,1736244643232,-500.0,9.697e-05,2]
[347956452,1736244643242,-647.52,9.697e-05,2]
[347956454,1736244643251,-500.0,9.697e-05,2]
[347956456,1736244643260,-500.0,9.697e-05,2]
[347956458,1736244643269,-500.0,9.697e-05,2]
[347956459,1736244643279,-500.0,9.697e-05,2]
[347956462,1736244643288,-500.0,9.697e-05,2]
[347956464,1736244643298,-500.0,9.697e-05,2]
[347956465,1736244643308,-500.0,9.697e-05,2]
[347956467,1736244643317,-500.0,9.697e-05,2]
[347956469,1736244643326,-500.0,9.697e-05,2]
[347956472,1736244643335,-500.0,9.697e-05,2]
[347956474,1736244643344,-500.0,9.697e-05,2]
[347956475,1736244643354,-500.0,9.697e-05,2]
[347956477,1736244643363,-500.0,9.697e-05,2]
[347956480,1736244643372,-500.0,9.697e-05,2]
[347956481,1736244643381,-500.0,9.697e-05,2]
[347956483,1736244643391,-500.0,9.697e-05,2]
[347956485,1736244643400,-500.0,9.697e-05,2]
[347956487,1736244643409,-500.0,9.697e-05,2]
[347956489,1736244643419,-500.0,9.697e-05,2]
[347956491,1736244643428,-500.0,9.697e-05,2]
[347956493,1736244643442,-500.0,9.697e-05,2]
[347956495,1736244643452,-500.0,9.697e-05,2]
[347956498,1736244643462,-500.0,9.697e-05,2]
[347956499,1736244643471,-500.0,9.697e-05,2]
[347956501,1736244643481,-500.0,9.697e-05,2]
[347956502,1736244643489,-500.0,9.697e-05,2]
[347956503,1736244643499,-500.0,9.697e-05,2]
[347956504,1736244643508,-500.0,9.697e-05,2]
[347956505,1736244643517,-500.0,9.697e-05,2]
[347956506,1736244643526,-500.0,9.697e-05,2]
[347956507,1736244643536,-500.0,9.697e-05,2]
[347956508,1736244643546,-500.0,9.697e-05,2]
[347956509,1736244643557,-500.0,9.697e-05,2]
[347956510,1736244643567,-500.0,9.697e-05,2]
[347956511,1736244643576,-500.0,9.697e-05,2]
[347956512,1736244643586,-266.06370301,9.697e-05,2]
[347956513,1736244643596,-500.0,9.697e-05,2]
[347956514,1736244643606,-500.0,9.697e-05,2]
[347956515,1736244643616,-500.0,9.697e-05,2]
[347956516,1736244643626,-500.0,9.697e-05,2]
[347956517,1736244643635,-500.0,9.697e-05,2]
[347956518,1736244643645,-500.0,9.697e-05,2]
[347956519,1736244643654,-500.0,9.697e-05,2]
[347956520,1736244643664,-500.0,9.697e-05,2]
[347956521,1736244643673,-500.0,9.697e-05,2]
[347956522,1736244643683,-500.0,9.697e-05,2]
[347956523,1736244643694,-500.0,9.697e-05,2]
[347956524,1736244643705,-500.0,9.697e-05,2]